bitfinex/quotes_SOLUSD_20260214
["timestamp","ask_amount","ask_price","bid_price","bid_amount"]
[1771056574976,17.52825159,85.71,85.692,1.00537278]
[1771056575385,17.52825159,85.74,85.694,1.00537278]
[1771056575584,11.66330374,85.739,85.701,1.00537278]
[1771056575782,17.52825159,85.74,85.71,17.52825159]
[1771056575979,11.66213177,85.748,85.712,1.00537278]
[1771056576181,17.52825159,85.75,85.712,1.00537278]
[1771056576382,6.09200529,85.784,85.692,40.84395275]
[1771056576383,17.52825159,85.77,85.741,1.00537278]
[1771056577597,98.38825159,85.8,85.74,48.1]
[1771056577598,17.52825159,85.76,85.74,48.1]
[1771056577794,0.34878783,85.759,85.731,48.1]
[1771056578504,11.66071969,85.758,85.731,48.1]
[1771056578696,0.35094717,85.757,85.731,48.1]
[1771056578998,5.88326383,85.75,85.722,48.1]
[1771056579388,5.88326383,85.75,85.723,1.00537278]
[1771056579900,11.66194357,85.749,85.723,1.00537278]
[1771056580081,5.88326383,85.74,85.722,48.1]
[1771056580886,5.88457797,85.74,85.722,48.1]
[1771056581196,11.66330374,85.739,85.723,1.02751504]
[1771056581505,11.66330374,85.739,85.722,48.1]
[1771056581691,5.88457797,85.73,85.69,5.88457797]
[1771056581901,5.88457797,85.73,85.691,48.06]
[1771056582102,6.81849251,85.73,85.69,5.88457797]
[1771056582999,40.8215631,85.739,85.7,17.51829049]
[1771056583498,0.93391454,85.745,85.65,17.51829049]
[1771056583499,11.66258713,85.745,85.71,17.51829049]
[1771056583705,11.66258713,85.745,85.721,1.02751504]
[1771056583901,17.51829049,85.76,85.721,1.02751504]
[1771056584094,17.51829049,85.76,85.723,1.02751504]
[1771056584486,0.93391454,85.759,85.723,1.02751504]
[1771056585203,0.93391454,85.749,85.715,1.02751504]
[1771056585402,11.66207958,85.748,85.715,1.02751504]
[1771056585709,12.59599412,85.748,85.715,1.02751504]
[1771056586698,0.93391454,85.739,85.714,48.0]
[1771056588220,11.66343978,85.738,85.707,1.02751504]
[1771056589007,11.66343978,85.738,85.71,17.51829049]
[1771056589207,11.66343978,85.738,85.711,1.02751504]
[1771056589712,0.93391454,85.737,85.704,1.02751504]
[1771056591215,11.66371185,85.736,85.706,1.02751504]
[1771056591712,0.93391454,85.735,85.706,1.02751504]
[1771056593022,11.66371185,85.736,85.706,1.02751504]
[1771056594196,11.66371185,85.736,85.708,1.02751504]
[1771056594597,17.51829049,85.74,85.711,1.02751504]
[1771056594813,11.66194357,85.749,85.711,1.02751504]
[1771056595017,17.51829049,85.74,85.711,1.02751504]
[1771056595418,0.93391454,85.739,85.711,1.02751504]
[1771056595594,0.93391454,85.739,85.704,11.66793153]
[1771056595801,0.93391454,85.739,85.705,1.02751504]
[1771056597406,11.66343978,85.738,85.707,1.02751504]
[1771056597601,0.93391454,85.737,85.707,1.02751504]
[1771056598721,11.66371185,85.736,85.707,1.02751504]
[1771056599016,0.93391454,85.735,85.707,1.02751504]
[1771056599320,0.93391454,85.729,85.699,1.02751504]
[1771056599706,0.93391454,85.719,85.688,1.02751504]
[1771056599917,0.93391454,85.719,85.688,11.67022822]
[1771056600217,0.93391454,85.719,85.689,1.02751504]
[1771056600421,40.82299149,85.736,85.701,1.02751504]
[1771056600731,11.66371185,85.736,85.701,1.02751504]
[1771056601114,11.66371185,85.736,85.711,1.00747436]
[1771056601306,0.97818254,85.735,85.702,11.66833912]
[1771056601514,17.51829049,85.73,85.703,1.00747436]
[1771056601823,0.97818254,85.729,85.703,1.00747436]
[1771056602011,17.51829049,85.73,85.703,1.00747436]
[1771056602426,0.97818254,85.729,85.703,1.00747436]
[1771056602813,17.51829049,85.73,85.703,1.00747436]
[1771056603321,11.66466423,85.729,85.703,1.00747436]
[1771056604708,0.97818254,85.728,85.693,1.00747436]
[1771056604935,0.97818254,85.728,85.695,1.00747436]
[1771056605612,12.6431189,85.727,85.697,1.00747436]
[1771056605807,0.97818254,85.726,85.697,1.00747436]
[1771056606029,0.97818254,85.719,85.686,1.00747436]
[1771056607726,12.64434367,85.718,85.686,1.00747436]
[1771056607921,0.97818254,85.709,85.679,1.00747436]
[1771056608120,5.58855476,85.71,85.681,1.00747436]
[1771056608314,0.97818254,85.716,85.681,1.00747436]
[1771056610437,0.97818254,85.716,85.68,5.88640922]
[1771056610438,11.66656944,85.715,85.683,1.00747436]
[1771056611316,12.64475198,85.715,85.683,1.00747436]
[1771056611739,0.97818254,85.709,85.683,1.00747436]
[1771056612831,5.88640922,85.7,85.675,1.00747436]
[1771056613030,0.97818254,85.699,85.675,1.00747436]
[1771056613219,0.97818254,85.689,85.66,1.00747436]
[1771056613429,5.88640922,85.68,85.66,1.00747436]
[1771056614842,0.97818254,85.678,85.645,11.67599278]
[1771056615128,0.97818254,85.678,85.649,1.00747436]
[1771056616625,11.67174387,85.677,85.649,1.00747436]
[1771056617213,1.08115192,85.694,85.66,5.88640922]
[1771056617418,1.08115192,85.701,85.67,5.88640922]
[1771056617636,1.08115192,85.699,85.653,47.9]
[1771056617827,5.88640922,85.71,85.653,47.9]
[1771056617828,1.08115192,85.679,85.653,47.9]
[1771056618625,11.67283381,85.669,85.647,14.44702171]
[1771056618834,11.67283381,85.669,85.634,47.9]
[1771056618835,5.88640922,85.66,85.634,47.9]
[1771056619030,1.08115192,85.659,85.634,47.9]
[1771056619227,1.08115192,85.659,85.614,11.6802038]
[1771056619420,5.88640922,85.66,85.62,53.80640922]
[1771056619626,40.85491834,85.669,85.62,53.80640922]
[1771056620043,40.85491834,85.669,85.63,5.88640922]
[1771056620546,1.08115192,85.659,85.621,47.92]
[1771056620922,1.08115192,85.657,85.621,47.92]
[1771056621122,40.86016483,85.658,85.621,47.92]
[1771056621330,1.08115192,85.657,85.621,47.92]
[1771056622432,40.86111888,85.656,85.621,0.02358722]
[1771056622950,1.08115192,85.655,85.621,0.02358722]
[1771056623448,40.86111888,85.656,85.621,0.02358722]
[1771056623644,5.88640922,85.65,85.621,0.02358722]
[1771056624026,40.86111888,85.656,85.631,0.0273832]
[1771056624744,5.88640922,85.65,85.621,0.03111215]
[1771056625527,40.86207298,85.654,85.621,0.03111215]
[1771056626050,11.67487799,85.654,85.631,0.03481332]
[1771056626550,40.86207298,85.654,85.631,0.03481332]
[1771056627228,11.67487799,85.654,85.631,0.03481332]
[1771056627544,58.35202085,85.687,85.621,11.67937772]
[1771056627545,40.84681277,85.686,85.64,11.77281844]
[1771056627756,40.84681277,85.686,85.66,5.88640922]
[1771056627757,29.17629484,85.686,85.66,5.88640922]
[1771056627946,29.17629484,85.686,85.651,47.92]
[1771056628644,1.10219897,85.685,85.651,47.92]
[1771056629240,1.10219897,85.683,85.65,5.88640922]
[1771056630345,40.8477662,85.684,85.65,5.88640922]
[1771056631437,29.17697586,85.684,85.65,5.88640922]
[1771056631638,30.27917483,85.684,85.65,5.88640922]
[1771056631838,1.10219897,85.683,85.65,5.88640922]
[1771056633439,12.77326173,85.682,85.651,0.02293039]
[1771056633753,1.10219897,85.681,85.651,0.02293039]
[1771056635151,11.6713352,85.68,85.651,0.02293039]
[1771056635353,11.6713352,85.68,85.651,11.69821731]
[1771056635644,11.6713352,85.68,85.661,0.02886539]
[1771056636628,12.77353417,85.68,85.651,0.03178228]
[1771056637551,1.10219897,85.679,85.651,0.03178228]
[1771056638138,1.10219897,85.679,85.638,0.03467613]
[1771056638330,1.10219897,85.659,85.631,0.03467613]
[1771056638947,1.10219897,85.659,85.618,47.86]
[1771056639152,1.10219897,85.659,85.601,29.2051254]
[1771056639153,1.10219897,85.639,85.612,0.03753368]
[1771056639448,11.67705924,85.638,85.612,0.03753368]
[1771056640146,5.88640922,85.63,85.612,0.03753368]
[1771056640351,1.10219897,85.637,85.612,0.03753368]
[1771056641651,12.77953093,85.636,85.612,0.03753368]
[1771056641845,1.10219897,85.635,85.612,0.03753368]
[1771056642455,1.10219897,85.635,85.61,0.2]
[1771056642938,11.67733196,85.636,85.611,0.0513146]
[1771056644749,11.67569587,85.648,85.611,0.0513146]
[1771056644959,12.77789484,85.648,85.621,0.05661951]
[1771056645260,12.77789484,85.648,85.612,0.05661951]
[1771056645261,1.10219897,85.639,85.612,0.05661951]
[1771056646653,11.67705924,85.638,85.612,0.05661951]
[1771056649961,1.10219897,85.637,85.61,0.2]
[1771056650163,1.10219897,85.637,85.611,0.06937814]
[1771056651249,1.10219897,85.637,85.61,0.2]
[1771056651965,11.67733196,85.636,85.611,0.07427037]
[1771056652856,11.67676138,85.641,85.611,0.07427037]
[1771056653050,11.67676138,85.641,85.621,0.0766692]
[1771056653361,78.64,85.662,85.62,5.89854199]
[1771056653362,11.67460539,85.656,85.631,0.0766692]
[1771056653668,11.67460539,85.656,85.641,0.07903587]
[1771056654567,1.10219897,85.671,85.641,0.07903587]
[1771056656764,1.10219897,85.669,85.622,0.08595142]
[1771056656967,1.10219897,85.669,85.63,5.89854199]
[1771056657167,1.10219897,85.669,85.63,5.98449341]
[1771056657472,1.10219897,85.669,85.631,0.08595142]
[1771056658771,1.10219897,85.667,85.64,5.89854199]
[1771056659267,1.10219897,85.667,85.631,0.09043689]
[1771056660471,1.10219897,85.667,85.64,5.89854199]
[1771056660672,1.10219897,85.667,85.64,5.99335979]
[1771056661156,11.67324259,85.666,85.64,5.99335979]
[1771056661359,1.10219897,85.665,85.64,5.99335979]
[1771056661548,1.10219897,85.665,85.64,0.0948178]
[1771056662575,1.10219897,85.663,85.63,5.89854199]
[1771056662768,1.10219897,85.659,85.624,11.78006828]
[1771056662967,1.10219897,85.659,85.625,0.10119947]
[1771056663288,1.10219897,85.659,85.63,5.99974146]
[1771056663470,1.10219897,85.659,85.63,5.89854199]
[1771056663771,1.10219897,85.659,85.597,61.9]
[1771056663772,1.10219897,85.649,85.614,48.02328302]
[1771056663953,1.10219897,85.649,85.614,0.10328302]
[1771056664255,1.10219897,85.649,85.616,0.10328302]
[1771056664455,11.67351512,85.664,85.631,0.10534946]
[1771056664655,11.67351512,85.664,85.641,0.10534946]
[1771056664873,1.10219897,85.663,85.641,0.10534946]
[1771056665259,1.10219897,85.663,85.631,0.10534946]
[1771056665978,1.10219897,85.659,85.628,0.10739869]
[1771056666356,1.10219897,85.659,85.631,0.10739869]
[1771056666753,11.67351512,85.664,85.632,0.10940112]
[1771056666972,11.67351512,85.664,85.641,0.10940112]
[1771056667178,11.67288845,85.669,85.641,0.10940112]
[1771056667553,11.67288845,85.669,85.64,5.89854199]
[1771056667554,11.67288845,85.669,85.651,0.11138858]
[1771056667765,11.67186579,85.677,85.651,0.11138858]
[1771056668164,5.89854199,85.7,85.661,0.11138858]
[1771056668374,1.10219897,85.699,85.661,0.11138858]
[1771056668874,1.10219897,85.687,85.651,0.11335269]
[1771056669180,1.10219897,85.687,85.652,0.11335269]
[1771056670470,1.10219897,85.687,85.651,11.67528692]
[1771056670967,1.10219897,85.685,85.65,5.89854199]
[1771056671480,1.10219897,85.679,85.65,5.89854199]
[1771056672483,1.10219897,85.679,85.651,0.12099951]
[1771056672981,1.10219897,85.677,85.64,5.89854199]
[1771056673777,5.89854199,85.67,85.637,11.6771956]
[1771056673983,1.10219897,85.669,85.637,11.6771956]
[1771056674483,1.10219897,85.669,85.634,0.12285779]
[1771056675079,78.66,85.679,85.624,47.68]
[1771056675080,1.10219897,85.659,85.624,47.68]
[1771056675373,1.10219897,85.659,85.621,11.67937772]
[1771056675573,1.10219897,85.659,85.621,11.80589287]
[1771056675883,1.10219897,85.659,85.622,0.12651515]
[1771056676272,1.10219897,85.649,85.616,11.67992442]
[1771056676869,1.10219897,85.649,85.617,0.12830156]
[1771056677366,1.10219897,85.647,85.617,0.12830156]
[1771056677865,1.10219897,85.639,85.612,0.13007999]
[1771056679685,1.10219897,85.646,85.612,0.13007999]
[1771056680473,1.10219897,85.646,85.621,0.13529042]
[1771056680667,1.10219897,85.654,85.621,0.13529042]
[1771056681173,5.89854199,85.65,85.621,0.13529042]
[1771056681484,1.10219897,85.649,85.621,0.13529042]
[1771056681989,1.10219897,85.647,85.621,0.13529042]
[1771056683487,1.10219897,85.647,85.615,11.82042705]
[1771056683786,1.10219897,85.639,85.61,0.2]
[1771056683985,1.10219897,85.629,85.61,0.2]
[1771056685392,40.86970736,85.638,85.585,76.95048425]
[1771056685393,1.10219897,85.619,85.588,0.14360459]
[1771056685573,1.10219897,85.619,85.58,6.09854199]
[1771056685574,1.10219897,85.619,85.591,0.14360459]
[1771056686172,11.67978696,85.618,85.592,0.14360459]
[1771056688495,1.10219897,85.617,85.592,0.14360459]
[1771056689366,11.67842294,85.628,85.592,0.14360459]
[1771056689571,1.10219897,85.635,85.601,0.14990987]
[1771056689790,1.10219897,85.629,85.601,0.14990987]
[1771056689998,1.10219897,85.629,85.591,0.14990987]
[1771056690298,1.10219897,85.619,85.581,11.68483658]
[1771056690800,1.10219897,85.609,85.58,0.2]
[1771056690971,1.10219897,85.609,85.58,6.24998756]
[1771056691169,40.8744803,85.628,85.582,0.15296659]
[1771056691170,1.14531372,85.619,85.582,0.15296659]
[1771056691391,1.14531372,85.619,85.59,5.89854199]
[1771056691790,1.14531372,85.619,85.591,0.15447079]
[1771056692290,1.14531372,85.617,85.591,0.15447079]
[1771056692500,1.14531372,85.609,85.572,47.78]
[1771056692794,1.14531372,85.609,85.552,0.15595532]
[1771056692795,1.14531372,85.605,85.581,0.15595532]
[1771056693007,1.14531372,85.618,85.581,0.15595532]
[1771056693680,1.14531372,85.618,85.59,5.89854199]
[1771056694202,1.14531372,85.616,85.59,5.89854199]
[1771056694980,1.14531372,85.616,85.6,5.89854199]
[1771056695696,11.6782338,85.63,85.601,0.16029819]
[1771056695994,12.82354752,85.63,85.61,5.89854199]
[1771056696409,1.14531372,85.629,85.61,5.89854199]
[1771056696982,1.14531372,85.629,85.602,11.68191703]
[1771056697499,1.14531372,85.627,85.597,11.68261302]
[1771056697794,1.14531372,85.627,85.598,0.16310511]
[1771056697994,1.14531372,85.647,85.611,1.07694405]
[1771056698394,1.14531372,85.639,85.601,1.07694405]
[1771056699495,1.14873851,85.629,85.595,11.68282281]
[1771056701303,1.14873851,85.629,85.6,5.89953467]
[1771056701686,1.14873851,85.627,85.6,17.58166729]
[1771056703101,1.14873851,85.669,85.621,1.16476143]
[1771056703287,1.14873851,85.659,85.621,1.16476143]
[1771056704207,1.14873851,85.659,85.613,1.16476143]
[1771056704595,1.14873851,85.659,85.62,5.89953467]
[1771056704905,1.14873851,85.659,85.621,1.16476143]
[1771056705300,1.14873851,85.657,85.623,1.16476143]
[1771056706801,1.14873851,85.655,85.631,1.16476143]
[1771056707503,11.67460539,85.656,85.631,1.16476143]
[1771056708706,11.67404082,85.661,85.64,7.0642961]
[1771056710510,1.14873851,85.661,85.64,7.0642961]
[1771056713401,1.14873851,85.659,85.633,1.16476143]
[1771056713599,29.18266371,85.668,85.63,17.57761047]
[1771056713600,1.14873851,85.657,85.63,17.57761047]
[1771056714216,1.14873851,85.657,85.63,18.7423719]
[1771056715212,1.14873851,85.657,85.63,12.84283723]
[1771056715413,1.14873851,85.655,85.63,5.89953467]
[1771056715717,1.14873851,85.663,85.631,1.16476143]
[1771056716515,1.14873851,85.663,85.63,5.89953467]
[1771056716516,1.14873851,85.663,85.637,1.16476143]
[1771056717206,1.14873851,85.663,85.631,1.16476143]
[1771056718405,11.67378767,85.662,85.632,11.67787742]
[1771056718611,1.14873851,85.661,85.633,1.16476143]
[1771056720015,11.67174387,85.677,85.633,1.16476143]
[1771056720222,5.89953467,85.71,85.671,1.16476143]
[1771056720405,11.66752228,85.708,85.68,5.89953467]
[1771056720607,11.66752228,85.708,85.661,1.16476143]
[1771056720608,1.14873851,85.699,85.661,1.16476143]
[1771056720803,1.14873851,85.699,85.662,1.16476143]
[1771056721300,1.14873851,85.699,85.67,5.89953467]
[1771056721705,1.14873851,85.699,85.662,1.16476143]
[1771056722412,1.09221565,85.697,85.663,12.87269279]
[1771056722813,1.09221565,85.697,85.664,1.19904139]
[1771056723322,1.09221565,85.689,85.663,11.6736514]
[1771056723813,1.09221565,85.689,85.649,1.19904139]
[1771056724010,1.09221565,85.689,85.62,5.89953467]
[1771056724011,1.09221565,85.679,85.642,1.19904139]
[1771056724815,1.09221565,85.677,85.643,12.87541891]
[1771056725002,1.09221565,85.669,85.643,12.87541891]
[1771056725199,1.09221565,85.669,85.643,11.67637752]
[1771056725399,1.09221565,85.659,85.636,11.67733196]
[1771056725600,1.09221565,85.659,85.636,12.87637335]
[1771056725799,1.09221565,85.659,85.637,1.19904139]
[1771056727403,1.09221565,85.659,85.631,1.19904139]
[1771056727609,1.09221565,85.649,85.619,11.67965054]
[1771056727824,5.89953467,85.64,85.61,7.09857606]
[1771056728026,1.09221565,85.639,85.612,1.19904139]
[1771056728223,1.09221565,85.649,85.612,1.19904139]
[1771056728426,1.09221565,85.639,85.612,1.19904139]
[1771056729129,1.09221565,85.639,85.613,11.68046908]
[1771056729334,1.09221565,85.639,85.614,1.19904139]
[1771056733435,1.09221565,85.639,85.616,1.19904139]
[1771056734340,1.09221565,85.646,85.616,1.19904139]
[1771056735128,1.09221565,85.639,85.616,1.19904139]
[1771056735441,1.09221565,85.639,85.611,11.68073551]
[1771056735623,1.09221565,85.639,85.612,1.19904139]
[1771056737831,1.09221565,85.638,85.612,1.19904139]
[1771056738139,1.09221565,85.649,85.612,1.19904139]
[1771056739634,11.67583219,85.647,85.614,1.19904139]
[1771056739857,1.09221565,85.646,85.614,1.19904139]
[1771056743444,1.09221565,85.644,85.616,1.19904139]
[1771056743949,1.09221565,85.639,85.616,1.19904139]
[1771056745354,1.09221565,85.639,85.615,11.68019622]
[1771056745655,1.09221565,85.629,85.608,1.19904139]
[1771056746457,1.09221565,85.629,85.607,11.68128774]
[1771056747451,1.09221565,85.629,85.607,12.88032913]
[1771056747957,1.09221565,85.627,85.602,11.68191585]
[1771056748373,5.89953467,85.62,85.597,1.19904139]
[1771056748531,1.09221565,85.619,85.597,1.19904139]
[1771056749136,1.09221565,85.619,85.596,11.68276521]
[1771056749337,1.09221565,85.619,85.588,1.19904139]
[1771056749550,1.09221565,85.625,85.591,1.19904139]
[1771056750257,11.67896851,85.624,85.593,1.19904139]
[1771056750863,12.77118416,85.624,85.593,1.19904139]
[1771056751451,1.15855978,85.623,85.595,1.1399283]
[1771056751960,11.67828656,85.629,85.595,1.1399283]
[1771056751961,1.15855978,85.619,85.595,1.1399283]
[1771056752138,1.15855978,85.609,85.588,11.68388091]
[1771056752334,1.15855978,85.616,85.591,1.1399283]
[1771056752538,29.19208991,85.64,85.588,11.68388091]
[1771056752539,77.98,85.647,85.601,1.1399283]
[1771056752739,1.15855978,85.646,85.611,1.1399283]
[1771056754765,1.15855978,85.639,85.613,1.1399283]
[1771056756962,1.15855978,85.637,85.612,11.68060552]
[1771056757360,1.15855978,85.629,85.6,11.68224299]
[1771056758071,1.15855978,85.629,85.595,11.68283293]
[1771056758072,5.89953467,85.62,85.595,11.68283293]
[1771056758247,1.15855978,85.619,85.595,11.68283293]
[1771056758943,1.15855978,85.619,85.592,1.1399283]
[1771056759850,1.13074016,85.609,85.586,1.14208761]
[1771056760457,1.13074016,85.609,85.585,11.68417258]
[1771056760965,1.13074016,85.599,85.576,1.14208761]
[1771056761262,1.13074016,85.599,85.578,1.14208761]
[1771056761443,5.9030756,85.61,85.581,1.14208761]
[1771056761641,1.13074016,85.615,85.581,1.14208761]
[1771056761848,1.13074016,85.609,85.581,1.14208761]
[1771056763266,1.13074016,85.609,85.583,1.14208761]
[1771056764170,1.13074016,85.607,85.576,1.14208761]
[1771056767172,1.13074016,85.605,85.576,1.14208761]
[1771056768255,5.9030756,85.61,85.576,1.14208761]
[1771056768256,1.13074016,85.603,85.576,1.14208761]
[1771056769263,1.13074016,85.601,85.577,11.68538275]
[1771056769464,1.13074016,85.601,85.578,1.14208761]
[1771056770358,1.13074016,85.599,85.57,1.34208761]
[1771056770560,1.13074016,85.599,85.573,11.68592897]
[1771056770896,1.13074016,85.599,85.573,12.82801658]
[1771056771173,1.13074016,85.599,85.574,1.14208761]
[1771056771373,1.13074016,85.599,85.57,6.1030756]
[1771056771374,1.13074016,85.599,85.576,1.14208761]
[1771056771872,12.8110176,85.615,85.581,1.14208761]
[1771056772075,5.9030756,85.61,85.581,1.14208761]
[1771056772476,1.13074016,85.614,85.581,1.14208761]
[1771056775578,1.13074016,85.614,85.591,1.14208761]
[1771056776456,12.81120588,85.614,85.591,1.14208761]
[1771056776876,11.68046572,85.614,85.591,1.14208761]
[1771056777080,1.13074016,85.613,85.591,1.14208761]
[1771056777576,12.81051471,85.619,85.591,1.14208761]
[1771056777774,1.13074016,85.629,85.591,1.14208761]
[1771056778576,1.13074016,85.629,85.593,1.14208761]
[1771056778782,1.13074016,85.627,85.595,1.14208761]
[1771056779377,77.84,85.632,85.611,1.14208761]
[1771056780068,11.67748927,85.635,85.611,1.14208761]
[1771056780379,1.13074016,85.634,85.611,1.14208761]
[1771056780881,1.13074016,85.632,85.611,1.14208761]
[1771056781256,1.1692227,85.619,85.585,1.11766539]
[1771056781460,1.1692227,85.619,85.591,1.11766539]
[1771056782699,1.1692227,85.619,85.593,1.11766539]
[1771056783079,1.1692227,85.639,85.611,1.11766539]
[1771056783694,11.67627474,85.644,85.611,1.11766539]
[1771056783999,1.1692227,85.643,85.611,1.11766539]
[1771056784608,1.1692227,85.639,85.611,1.11766539]
[1771056784890,1.1692227,85.639,85.612,11.68060552]
[1771056785071,11.67491837,85.654,85.621,1.11766539]
[1771056785271,1.1692227,85.653,85.621,1.11766539]
[1771056786504,1.1692227,85.666,85.631,1.11766539]
[1771056786671,1.1692227,85.665,85.631,1.11766539]
[1771056786871,1.1692227,85.663,85.633,1.11766539]
[1771056787396,1.1692227,85.659,85.633,1.11766539]
[1771056787774,1.1692227,85.649,85.612,1.11766539]
[1771056787995,1.1692227,85.649,85.614,1.11766539]
[1771056789309,1.1692227,85.639,85.615,11.68019622]
[1771056789590,1.1692227,85.639,85.587,58.41962907]
[1771056789591,1.1692227,85.619,85.591,1.11766539]
[1771056789969,1.1692227,85.619,85.589,11.6837444]
[1771056790177,1.1692227,85.619,85.59,5.9030756]
[1771056790487,1.1692227,85.619,85.591,1.11766539]
[1771056791601,1.1692227,85.619,85.593,1.11766539]
[1771056792476,1.1692227,85.626,85.593,1.11766539]
[1771056793488,1.1692227,85.619,85.588,12.8015046]
[1771056793678,1.1692227,85.619,85.591,1.11766539]
[1771056794597,1.1692227,85.618,85.591,1.11766539]
[1771056794791,1.1692227,85.618,85.592,11.68333489]
[1771056794990,5.9030756,85.62,85.584,11.68432435]
[1771056794991,1.1692227,85.609,85.584,11.68432435]
[1771056795377,1.1692227,85.599,85.575,11.68564915]
[1771056795578,1.1692227,85.589,85.575,11.68564915]
[1771056796984,1.1692227,85.589,85.57,0.2]
[1771056797875,1.1692227,85.579,85.57,0.2]
[1771056798490,11.68385106,85.589,85.57,0.2]
[1771056798804,1.1692227,85.588,85.57,0.2]
[1771056799684,5.9030756,85.58,85.57,0.2]
[1771056800002,1.1692227,85.579,85.537,1.11766539]
[1771056800205,1.1692227,85.559,85.539,11.69050423]
[1771056800397,1.1692227,85.559,85.537,1.11766539]
[1771056803699,5.9030756,85.56,85.539,1.11766539]
[1771056804107,77.44,85.584,85.541,1.11766539]
[1771056804108,1.1692227,85.569,85.541,1.11766539]
[1771056804309,5.9030756,85.56,85.541,1.11766539]
[1771056804907,1.1692227,85.569,85.541,1.11766539]
[1771056805613,1.1692227,85.565,85.541,1.11766539]
[1771056806400,1.1692227,85.565,85.542,11.69016389]
[1771056806603,1.1692227,85.565,85.543,1.11766539]
[1771056806804,5.9030756,85.56,85.537,12.80844972]
[1771056807119,7.0722983,85.56,85.538,1.11766539]
[1771056807716,1.1692227,85.559,85.538,1.11766539]
[1771056808213,1.1692227,85.559,85.53,6.1030756]
[1771056808214,1.1692227,85.549,85.531,1.11766539]
[1771056809417,1.1692227,85.549,85.53,0.2]
[1771056809721,1.1692227,85.539,85.53,0.2]
[1771056809929,1.1692227,85.539,85.52,11.89307815]
[1771056809930,1.1692227,85.539,85.52,0.2]
[1771056810295,1.1692227,85.529,85.5,0.2]
[1771056810506,1.1692227,85.529,85.501,1.11766539]
[1771056811807,1.1692227,85.529,85.501,12.81343503]
[1771056812005,1.1692227,85.529,85.502,1.12309453]
[1771056812203,1.20565198,85.519,85.5,0.2]
[1771056815403,1.20565198,85.509,85.49,0.2]
[1771056815916,11.69344465,85.518,85.464,12.82392762]
[1771056815917,1.20565198,85.499,85.464,12.82392762]
[1771056816115,1.20565198,85.499,85.465,1.12309453]
[1771056816510,5.9030756,85.49,85.465,1.12309453]
[1771056816714,1.20565198,85.489,85.465,1.12309453]
[1771056818127,1.20565198,85.489,85.46,11.70138076]
[1771056818326,1.20565198,85.479,85.46,11.70138076]
[1771056819326,1.20565198,85.486,85.461,1.12309453]
[1771056819508,5.9030756,85.49,85.461,1.12309453]
[1771056819702,7.07444006,85.49,85.461,1.12309453]
[1771056820108,1.17136446,85.489,85.461,1.12309453]
[1771056820305,1.17136446,85.489,85.463,1.22776817]
[1771056820907,5.9030756,85.51,85.471,1.22776817]
[1771056821226,11.69274604,85.524,85.501,1.22776817]
[1771056821530,12.8641105,85.524,85.501,1.22776817]
[1771056821724,1.17136446,85.523,85.501,1.22776817]
[1771056822146,109.60773278,85.552,85.501,1.22776817]
[1771056822147,1.17136446,85.527,85.501,1.22776817]
[1771056822307,12.86358247,85.527,85.501,1.22776817]
[1771056823128,1.17136446,85.527,85.51,5.91260407]
[1771056823323,11.69140962,85.533,85.511,1.22776817]
[1771056823711,1.17136446,85.532,85.502,12.92340102]
[1771056823922,1.17136446,85.532,85.503,1.22776817]
[1771056824320,1.17136446,85.53,85.503,1.22776817]
[1771056824623,1.17136446,85.519,85.482,12.92613741]
[1771056825031,1.17136446,85.519,85.483,1.22776817]
[1771056825727,1.17136446,85.509,85.477,12.92673859]
[1771056825940,1.17136446,85.509,85.481,1.22776817]
[1771056826130,1.17136446,85.529,85.5,7.14037224]
[1771056826335,1.17136446,85.527,85.5,7.14037224]
[1771056826822,11.69142385,85.533,85.502,1.22776817]
[1771056827935,1.17136446,85.533,85.504,1.22776817]
[1771056830327,1.17136446,85.54,85.511,1.22776817]
[1771056830836,11.68949041,85.547,85.521,1.22776817]
[1771056831037,12.86085487,85.547,85.521,1.22776817]
[1771056831336,1.17136446,85.546,85.521,1.22776817]
[1771056831543,1.17136446,85.546,85.506,1.22776817]
[1771056831724,1.17136446,85.539,85.505,12.92299067]
[1771056832248,1.17136446,85.539,85.506,1.22776817]
[1771056832422,1.17136446,85.539,85.511,1.22776817]
[1771056832621,11.69015818,85.543,85.511,1.22776817]
[1771056832929,1.17136446,85.542,85.511,1.22776817]
[1771056833242,90.04065261,85.549,85.52,17.59464705]
[1771056833541,11.6885988,85.554,85.531,1.22776817]
[1771056833724,12.85996326,85.554,85.531,1.22776817]
[1771056835351,58.42667957,85.578,85.5,17.59464705]
[1771056835352,1.17136446,85.559,85.54,18.82241522]
[1771056835526,12.85831479,85.566,85.541,1.22776817]
[1771056836150,1.17136446,85.565,85.541,1.22776817]
[1771056836744,11.68715815,85.564,85.541,1.22776817]
[1771056837122,46.80732616,85.58,85.551,1.22776817]
[1771056837123,11.68545673,85.577,85.551,1.22776817]
[1771056837626,1.17136446,85.58,85.56,17.59464705]
[1771056837832,1.17136446,85.58,85.56,18.82241522]
[1771056838033,1.17136446,85.58,85.56,1.22776817]
[1771056838231,1.17136446,85.578,85.54,17.59464705]
[1771056838466,1.17136446,85.569,85.538,11.6906964]
[1771056838628,1.17136446,85.567,85.536,1.22776817]